[Event "Late-Titled-Tuesday-Blitz-February-06-2024"]
[Site "Chess.com"]
[Date "2024.02.06"]
[Round "6"]
[White "Msb2"]
[Black "Ticondriul"]
[Result "1/2-1/2"]
[WhiteElo "2982"]
[BlackElo "2735"]
[TimeControl "180+1"]
[EndTime "15:07:09 PST"]
[Termination "Game drawn - insufficient material"]

1. d4 {[%clk 0:03:00.9]} 1... Nf6 {[%clk 0:02:58.1]} 2. c4 {[%clk 0:03:01.6]}
2... e6 {[%clk 0:02:58.2]} 3. Nc3 {[%clk 0:03:02.3]} 3... Bb4 {[%clk 0:02:56.4]}
4. e3 {[%clk 0:03:02.9]} 4... b6 {[%clk 0:02:56.2]} 5. Bd3 {[%clk 0:03:02.3]}
5... Bb7 {[%clk 0:02:56.4]} 6. Nf3 {[%clk 0:03:03.1]} 6... Ne4 {[%clk 0:02:56]}
7. O-O {[%clk 0:03:02.7]} 7... Bxc3 {[%clk 0:02:56.1]} 8. bxc3 {[%clk
0:03:03.6]} 8... O-O {[%clk 0:02:56.4]} 9. Ne1 {[%clk 0:02:58.9]} 9... f5 {[%clk
0:02:45.1]} 10. f3 {[%clk 0:02:58.8]} 10... Nf6 {[%clk 0:02:40.6]} 11. a4 {[%clk
0:02:58.3]} 11... Nc6 {[%clk 0:02:39.4]} 12. e4 {[%clk 0:02:49.7]} 12... fxe4
{[%clk 0:02:38.5]} 13. fxe4 {[%clk 0:02:50.6]} 13... e5 {[%clk 0:02:37.9]} 14.
Nf3 {[%clk 0:02:47]} 14... d6 {[%clk 0:02:28.3]} 15. c5 {[%clk 0:02:44.1]} 15...
exd4 {[%clk 0:02:17.2]} 16. cxd4 {[%clk 0:02:45]} 16... dxc5 {[%clk 0:02:17.1]}
17. d5 {[%clk 0:02:45.2]} 17... Nd4 {[%clk 0:02:08.1]} 18. Nxd4 {[%clk
0:02:36.9]} 18... cxd4 {[%clk 0:02:06.2]} 19. Bb2 {[%clk 0:02:37.6]} 19... c5
{[%clk 0:02:01.9]} 20. dxc6 {[%clk 0:02:23.8]} 20... Bxc6 {[%clk 0:02:00.6]} 21.
Rc1 {[%clk 0:02:24.2]} 21... Bxe4 {[%clk 0:01:49]} 22. Bc4+ {[%clk 0:01:55.7]}
22... Bd5 {[%clk 0:01:28.7]} 23. Qxd4 {[%clk 0:01:45.8]} 23... Bxc4 {[%clk
0:01:20.7]} 24. Qxc4+ {[%clk 0:01:46.7]} 24... Kh8 {[%clk 0:01:20.8]} 25. Rcd1
{[%clk 0:01:29.2]} 25... Qc8 {[%clk 0:01:17.9]} 26. Qxc8 {[%clk 0:01:21.9]}
26... Raxc8 {[%clk 0:01:17.8]} 27. Bxf6 {[%clk 0:01:22.6]} 27... Rxf6 {[%clk
0:01:16.4]} 28. Rxf6 {[%clk 0:01:22.7]} 28... gxf6 {[%clk 0:01:17.3]} 29. Rd7
{[%clk 0:01:23]} 29... a5 {[%clk 0:00:55.2]} 30. Rd6 {[%clk 0:01:23.1]} 30...
Rc4 {[%clk 0:00:55.1]} 31. Rxf6 {[%clk 0:01:22.1]} 31... Rxa4 {[%clk 0:00:55.4]}
32. Rxb6 {[%clk 0:01:22.2]} 32... Kg7 {[%clk 0:00:55.5]} 33. Kf2 {[%clk
0:01:19.8]} 33... Ra3 {[%clk 0:00:55.9]} 34. Ra6 {[%clk 0:01:18.7]} 34... a4
{[%clk 0:00:55]} 35. h4 {[%clk 0:01:18.2]} 35... h5 {[%clk 0:00:52.5]} 36. g3
{[%clk 0:01:18.3]} 36... Kh7 {[%clk 0:00:50.8]} 37. Kg2 {[%clk 0:01:17.8]} 37...
Kg7 {[%clk 0:00:50.9]} 38. Kh2 {[%clk 0:01:11.2]} 38... Ra2+ {[%clk 0:00:49.2]}
39. Kh3 {[%clk 0:01:10.6]} 39... Ra3 {[%clk 0:00:50.1]} 40. Kg2 {[%clk
0:01:09.8]} 40... Ra2+ {[%clk 0:00:50.3]} 41. Kf3 {[%clk 0:01:09.9]} 41... Ra3+
{[%clk 0:00:48.4]} 42. Kf4 {[%clk 0:01:10.3]} 42... Kh7 {[%clk 0:00:47.3]} 43.
Ra7+ {[%clk 0:01:04.5]} 43... Kg6 {[%clk 0:00:47.2]} 44. Ra5 {[%clk 0:01:04.7]}
44... Kh6 {[%clk 0:00:43.2]} 45. Ra8 {[%clk 0:01:02.1]} 45... Kg6 {[%clk
0:00:41.4]} 46. Ra6+ {[%clk 0:00:49]} 46... Kg7 {[%clk 0:00:38.9]} 47. g4 {[%clk
0:00:46.3]} 47... hxg4 {[%clk 0:00:37.2]} 48. Kxg4 {[%clk 0:00:47.2]} 48... Ra1
{[%clk 0:00:36.3]} 49. Kg5 {[%clk 0:00:45.9]} 49... Rg1+ {[%clk 0:00:35.7]} 50.
Kh5 {[%clk 0:00:46.3]} 50... Ra1 {[%clk 0:00:33.9]} 51. Ra7+ {[%clk 0:00:46.2]}
51... Kf6 {[%clk 0:00:34.1]} 52. Kh6 {[%clk 0:00:40.8]} 52... a3 {[%clk
0:00:32.7]} 53. h5 {[%clk 0:00:41.4]} 53... a2 {[%clk 0:00:31.4]} 54. Kh7 {[%clk
0:00:41.7]} 54... Rh1 {[%clk 0:00:26.5]} 55. Rxa2 {[%clk 0:00:39]} 55... Rxh5+
{[%clk 0:00:26.4]} 56. Kg8 {[%clk 0:00:39.7]} 56... Rb5 {[%clk 0:00:24.1]} 57.
Ra6+ {[%clk 0:00:39.1]} 57... Ke7 {[%clk 0:00:23.6]} 58. Kg7 {[%clk 0:00:37.7]}
58... Rg5+ {[%clk 0:00:23.1]} 59. Kh6 {[%clk 0:00:38.1]} 59... Rg1 {[%clk
0:00:23.4]} 60. Ra2 {[%clk 0:00:37.9]} 60... Kf6 {[%clk 0:00:19.7]} 61. Rf2+
{[%clk 0:00:37.5]} 61... Ke6 {[%clk 0:00:20.1]} 62. Kh5 {[%clk 0:00:38.4]} 62...
Ke5 {[%clk 0:00:19.6]} 63. Kh4 {[%clk 0:00:38.9]} 63... Rg7 {[%clk 0:00:19.6]}
64. Kh3 {[%clk 0:00:38.9]} 64... Ke4 {[%clk 0:00:19.6]} 65. Rf8 {[%clk
0:00:39.2]} 65... Ke5 {[%clk 0:00:18.9]} 66. Kh4 {[%clk 0:00:39.4]} 66... Ke6
{[%clk 0:00:18.8]} 67. Re8+ {[%clk 0:00:40]} 67... Kf7 {[%clk 0:00:19.2]} 68.
Re1 {[%clk 0:00:40.9]} 68... Kf6 {[%clk 0:00:19.7]} 69. Kh5 {[%clk 0:00:40.4]}
69... Rg5+ {[%clk 0:00:19.3]} 70. Kh6 {[%clk 0:00:41.1]} 70... Rg2 {[%clk
0:00:20.2]} 71. Rf1+ {[%clk 0:00:40.3]} 71... Ke6 {[%clk 0:00:20.7]} 72. Rf3
{[%clk 0:00:40.6]} 72... Ke5 {[%clk 0:00:20.7]} 73. Kh5 {[%clk 0:00:40.6]} 73...
Ke4 {[%clk 0:00:21.3]} 74. Rf6 {[%clk 0:00:40.8]} 74... Rg8 {[%clk 0:00:21.1]}
75. Rg6 {[%clk 0:00:41.3]} 75... Rxg6 {[%clk 0:00:21.1]} 76. Kxg6 {[%clk
0:00:42.2]} 1/2-1/2

[Event "Late-Titled-Tuesday-Blitz-February-06-2024"]
[Site "Chess.com"]
[Date "2024.02.06"]
[Round "6"]
[White "ChEsper99"]
[Black "wanyaland"]
[Result "0-1"]
[WhiteElo "2241"]
[BlackElo "2486"]
[TimeControl "180+1"]
[EndTime "15:07:10 PST"]
[Termination "wanyaland won on time"]

1. e4 {[%clk 0:03:00.5]} 1... c5 {[%clk 0:02:59.5]} 2. c3 {[%clk 0:03:00.1]}
2... Nf6 {[%clk 0:02:58.8]} 3. e5 {[%clk 0:03:00.1]} 3... Nd5 {[%clk 0:02:58.8]}
4. d4 {[%clk 0:03:00.7]} 4... cxd4 {[%clk 0:02:58.9]} 5. cxd4 {[%clk 0:03:01.6]}
5... e6 {[%clk 0:02:59.1]} 6. Nf3 {[%clk 0:02:59.3]} 6... Qc7 {[%clk 0:02:59.3]}
7. Bd2 {[%clk 0:02:50.8]} 7... Be7 {[%clk 0:02:59]} 8. Nc3 {[%clk 0:02:50.8]}
8... Nxc3 {[%clk 0:02:58.7]} 9. Bxc3 {[%clk 0:02:45.3]} 9... O-O {[%clk
0:02:59.5]} 10. Bd3 {[%clk 0:02:44.8]} 10... d6 {[%clk 0:02:58.9]} 11. O-O
{[%clk 0:02:43.7]} 11... Nd7 {[%clk 0:02:58]} 12. Rc1 {[%clk 0:02:34.1]} 12...
Qb8 {[%clk 0:02:57.6]} 13. Re1 {[%clk 0:02:20.1]} 13... b6 {[%clk 0:02:54.8]}
14. Be4 {[%clk 0:02:08.4]} 14... Bb7 {[%clk 0:02:50.4]} 15. d5 {[%clk
0:02:04.9]} 15... Nc5 {[%clk 0:02:49.4]} 16. exd6 {[%clk 0:01:52.2]} 16... Qxd6
{[%clk 0:02:48.4]} 17. Be5 {[%clk 0:01:40.6]} 17... Qd7 {[%clk 0:02:42.1]} 18.
Rxc5 {[%clk 0:01:27.9]} 18... Bxc5 {[%clk 0:02:38.9]} 19. Bxh7+ {[%clk
0:00:55.7]} 19... Kxh7 {[%clk 0:02:35]} 20. Ng5+ {[%clk 0:00:55.6]} 20... Kg6
{[%clk 0:02:34.7]} 21. Qg4 {[%clk 0:00:38.3]} 21... f5 {[%clk 0:02:25.7]} 22.
Qg3 {[%clk 0:00:38.1]} 22... Bxd5 {[%clk 0:02:09.2]} 23. Nxe6+ {[%clk
0:00:26.3]} 23... Kh7 {[%clk 0:02:05.3]} 24. Nxg7 {[%clk 0:00:03.4]} 24... f4
{[%clk 0:01:52.4]} 25. Qh4+ {[%clk 0:00:03.5]} 25... Kg8 {[%clk 0:01:51.9]} 26.
Nh5 {[%clk 0:00:03]} 26... Be7 {[%clk 0:01:32.3]} 27. Nf6+ {[%clk 0:00:02.7]}
27... Bxf6 {[%clk 0:01:32.2]} 28. Bxf6 {[%clk 0:00:02.7]} 28... Rxf6 {[%clk
0:01:27.5]} 29. Qxf6 {[%clk 0:00:03.6]} 29... Qg7 {[%clk 0:01:06.4]} 30. Qxg7+
{[%clk 0:00:03.4]} 30... Kxg7 {[%clk 0:01:06.3]} 31. Re5 {[%clk 0:00:03.4]}
31... Bxa2 {[%clk 0:00:57.8]} 32. h4 {[%clk 0:00:02.4]} 32... Rf8 {[%clk
0:00:55.8]} 33. Re7+ {[%clk 0:00:01.2]} 33... Rf7 {[%clk 0:00:55.9]} 34. Re4
{[%clk 0:00:01.6]} 34... Kg6 {[%clk 0:00:52.6]} 35. g4 {[%clk 0:00:01.8]} 35...
fxg3 {[%clk 0:00:42.6]} 36. fxg3 {[%clk 0:00:02.7]} 36... Kf5 {[%clk 0:00:41.4]}
37. Rf4+ {[%clk 0:00:02.1]} 37... Ke5 {[%clk 0:00:41.5]} 38. Rb4 {[%clk
0:00:01.6]} 38... Bd5 {[%clk 0:00:38.8]} 39. Kh2 {[%clk 0:00:02]} 39... Rf2+
{[%clk 0:00:31.1]} 40. Kh3 {[%clk 0:00:02.3]} 40... Be6+ {[%clk 0:00:30.6]} 41.
g4 {[%clk 0:00:02.6]} 41... Rf4 {[%clk 0:00:26.2]} 42. Rb5+ {[%clk 0:00:02.3]}
42... Kd6 {[%clk 0:00:25.9]} 43. Rg5 {[%clk 0:00:01.6]} 43... Ke7 {[%clk
0:00:22]} 44. h5 {[%clk 0:00:02]} 44... a5 {[%clk 0:00:18.4]} 45. h6 {[%clk
0:00:02.1]} 45... Rf1 {[%clk 0:00:16.2]} 46. Rg7+ {[%clk 0:00:01.8]} 46... Kf6
{[%clk 0:00:15.7]} 0-1

[Event "Late-Titled-Tuesday-Blitz-February-06-2024"]
[Site "Chess.com"]
[Date "2024.02.06"]
[Round "6"]
[White "GothamChess"]
[Black "AryanTari"]
[Result "1-0"]
[WhiteElo "2711"]
[BlackElo "2908"]
[TimeControl "180+1"]
[EndTime "15:07:11 PST"]
[Termination "GothamChess won by resignation"]

1. e4 {[%clk 0:03:00.9]} 1... e5 {[%clk 0:02:50.1]} 2. Nf3 {[%clk 0:03:00.3]}
2... Nc6 {[%clk 0:02:49.3]} 3. c3 {[%clk 0:03:00.8]} 3... Nf6 {[%clk 0:02:44.4]}
4. d4 {[%clk 0:03:00.6]} 4... exd4 {[%clk 0:02:44.2]} 5. e5 {[%clk 0:03:00.2]}
5... Nd5 {[%clk 0:02:44.2]} 6. Qb3 {[%clk 0:03:00.9]} 6... Nb6 {[%clk
0:02:31.9]} 7. cxd4 {[%clk 0:03:00.5]} 7... d6 {[%clk 0:02:29.7]} 8. Bb5 {[%clk
0:02:59.4]} 8... Be6 {[%clk 0:02:21.8]} 9. Qc2 {[%clk 0:02:54.8]} 9... Qd7
{[%clk 0:02:20.8]} 10. O-O {[%clk 0:02:48.7]} 10... a6 {[%clk 0:02:19.4]} 11.
Bxc6 {[%clk 0:02:43.4]} 11... Qxc6 {[%clk 0:02:19.3]} 12. Qxc6+ {[%clk
0:02:39.5]} 12... bxc6 {[%clk 0:02:20.2]} 13. Bf4 {[%clk 0:02:34.7]} 13... Nd5
{[%clk 0:02:16.7]} 14. Bg3 {[%clk 0:02:31.9]} 14... h6 {[%clk 0:02:16.8]} 15.
Rc1 {[%clk 0:02:31.3]} 15... Kd7 {[%clk 0:02:16.7]} 16. Nbd2 {[%clk 0:02:22.7]}
16... Be7 {[%clk 0:02:15.4]} 17. Nc4 {[%clk 0:02:17.7]} 17... a5 {[%clk
0:02:14.2]} 18. Nfd2 {[%clk 0:02:00.6]} 18... Bf5 {[%clk 0:02:09.5]} 19. Ne3
{[%clk 0:01:52.5]} 19... Nxe3 {[%clk 0:02:07]} 20. fxe3 {[%clk 0:01:53.4]} 20...
Rhb8 {[%clk 0:02:05.5]} 21. b3 {[%clk 0:01:52.9]} 21... a4 {[%clk 0:02:04.8]}
22. Kf2 {[%clk 0:01:31.2]} 22... Be6 {[%clk 0:01:58.9]} 23. bxa4 {[%clk
0:01:19.7]} 23... Rxa4 {[%clk 0:01:58.4]} 24. Rc2 {[%clk 0:01:20.4]} 24... Rba8
{[%clk 0:01:54.4]} 25. Ne4 {[%clk 0:01:10.8]} 25... Bf5 {[%clk 0:01:51.3]} 26.
Kf3 {[%clk 0:01:11.3]} 26... d5 {[%clk 0:01:44.6]} 27. Nc5+ {[%clk 0:01:11.2]}
27... Bxc5 {[%clk 0:01:44.6]} 28. Rxc5 {[%clk 0:01:12.1]} 28... Be4+ {[%clk
0:01:45]} 29. Kg4 {[%clk 0:01:02.3]} 29... Rxa2 {[%clk 0:01:45.1]} 30. Rf1
{[%clk 0:01:01.3]} 30... Bg6 {[%clk 0:01:25.9]} 31. Kh3 {[%clk 0:00:42.4]} 31...
Re2 {[%clk 0:01:25.5]} 32. Rf3 {[%clk 0:00:29]} 32... Raa2 {[%clk 0:01:22.5]}
33. Rc1 {[%clk 0:00:23.4]} 33... Rxg2 {[%clk 0:01:21.9]} 34. Rc3 {[%clk
0:00:16.1]} 34... Rgb2 {[%clk 0:01:17]} 35. Kg4 {[%clk 0:00:10.7]} 35... Rc2
{[%clk 0:01:14.4]} 36. Rb3 {[%clk 0:00:10.4]} 36... Ke6 {[%clk 0:01:14.1]} 37.
Rb7 {[%clk 0:00:07.3]} 37... Bd3 {[%clk 0:01:02.1]} 38. Rf4 {[%clk 0:00:05.9]}
38... Bg6 {[%clk 0:00:44.5]} 39. Rxc7 {[%clk 0:00:05.6]} 39... Ra3 {[%clk
0:00:45.1]} 40. Bh4 {[%clk 0:00:02.5]} 40... Bf5+ {[%clk 0:00:21.5]} 41. Rxf5
{[%clk 0:00:01.8]} 41... Rg2+ {[%clk 0:00:22.2]} 42. Kh3 {[%clk 0:00:02.3]}
42... Kxf5 {[%clk 0:00:23.1]} 43. Kxg2 {[%clk 0:00:02.8]} 43... Rxe3 {[%clk
0:00:23.6]} 44. Bf2 {[%clk 0:00:03.4]} 44... Re2 {[%clk 0:00:23.2]} 45. Rxf7+
{[%clk 0:00:03.9]} 45... Kg6 {[%clk 0:00:23.8]} 46. Rf3 {[%clk 0:00:04.1]} 46...
Re4 {[%clk 0:00:23.1]} 47. Rg3+ {[%clk 0:00:04.2]} 47... Kf7 {[%clk 0:00:23.3]}
48. Kf3 {[%clk 0:00:04.8]} 48... g5 {[%clk 0:00:22.8]} 49. Rg4 {[%clk 0:00:04]}
49... Rxg4 {[%clk 0:00:21.6]} 50. Kxg4 {[%clk 0:00:04.9]} 50... Kg6 {[%clk
0:00:22.4]} 51. h4 {[%clk 0:00:03.5]} 51... h5+ {[%clk 0:00:22.9]} 52. Kf3
{[%clk 0:00:03.9]} 52... Kf5 {[%clk 0:00:22.5]} 53. hxg5 {[%clk 0:00:04.1]}
53... Kxg5 {[%clk 0:00:23.4]} 54. Be3+ {[%clk 0:00:03.5]} 54... Kf5 {[%clk
0:00:23.9]} 55. Bf2 {[%clk 0:00:04]} 55... c5 {[%clk 0:00:23.7]} 56. dxc5 {[%clk
0:00:03.8]} 56... Kxe5 {[%clk 0:00:24.6]} 57. Ke2 {[%clk 0:00:03.5]} 57... Ke6
{[%clk 0:00:23]} 58. Kd3 {[%clk 0:00:03.8]} 58... Kd7 {[%clk 0:00:23.4]} 59. Kd4
{[%clk 0:00:04.3]} 59... Ke6 {[%clk 0:00:24.1]} 60. Bg3 {[%clk 0:00:04.3]} 1-0

[Event "Late-Titled-Tuesday-Blitz-February-06-2024"]
[Site "Chess.com"]
[Date "2024.02.06"]
[Round "6"]
[White "expii"]
[Black "stepanosinovsky"]
[Result "1/2-1/2"]
[WhiteElo "2211"]
[BlackElo "2374"]
[TimeControl "180+1"]
[EndTime "15:07:11 PST"]
[Termination "Game drawn by agreement"]

1. e4 {[%clk 0:02:59.5]} 1... e5 {[%clk 0:02:59.7]} 2. Nf3 {[%clk 0:02:59]} 2...
Nc6 {[%clk 0:03:00.3]} 3. Bb5 {[%clk 0:02:57.8]} 3... a6 {[%clk 0:03:00.1]} 4.
Ba4 {[%clk 0:02:57.9]} 4... Nf6 {[%clk 0:03:00]} 5. O-O {[%clk 0:02:56.5]} 5...
Be7 {[%clk 0:02:59.3]} 6. d4 {[%clk 0:02:55.5]} 6... exd4 {[%clk 0:02:57.9]} 7.
e5 {[%clk 0:02:54.6]} 7... Ne4 {[%clk 0:02:57.9]} 8. Nxd4 {[%clk 0:02:48.9]}
8... O-O {[%clk 0:02:52.6]} 9. Nxc6 {[%clk 0:02:38.7]} 9... dxc6 {[%clk
0:02:49.7]} 10. c3 {[%clk 0:02:37.7]} 10... Bf5 {[%clk 0:02:35]} 11. Bc2 {[%clk
0:02:34.3]} 11... Qxd1 {[%clk 0:02:32.9]} 12. Bxd1 {[%clk 0:02:26.2]} 12... Bc5
{[%clk 0:02:24.5]} 13. Nd2 {[%clk 0:02:12.1]} 13... f6 {[%clk 0:01:16.4]} 14.
Nxe4 {[%clk 0:02:07.2]} 14... Bxe4 {[%clk 0:01:15.1]} 15. Bb3+ {[%clk
0:02:05.9]} 15... Kh8 {[%clk 0:01:14.2]} 16. exf6 {[%clk 0:02:05.1]} 16... Rxf6
{[%clk 0:01:13]} 17. Be3 {[%clk 0:02:00.5]} 17... Bxe3 {[%clk 0:00:23.6]} 18.
fxe3 {[%clk 0:02:01.4]} 18... Rd8 {[%clk 0:00:23.4]} 19. Rxf6 {[%clk 0:01:25.2]}
19... gxf6 {[%clk 0:00:23.1]} 20. Rf1 {[%clk 0:01:23.2]} 20... Kg7 {[%clk
0:00:19.8]} 21. Rf2 {[%clk 0:01:16.9]} 21... c5 {[%clk 0:00:19.5]} 22. Re2
{[%clk 0:01:14.9]} 22... b5 {[%clk 0:00:18.4]} 23. Kf2 {[%clk 0:01:11.7]} 23...
a5 {[%clk 0:00:18.1]} 24. Bc2 {[%clk 0:01:11.3]} 24... Bxc2 {[%clk 0:00:16.2]}
25. Rxc2 {[%clk 0:01:12.2]} 25... Rd1 {[%clk 0:00:16.6]} 26. Re2 {[%clk
0:01:07.2]} 26... c4 {[%clk 0:00:15.9]} 27. e4 {[%clk 0:01:04.8]} 27... Rb1
{[%clk 0:00:14.4]} 28. a3 {[%clk 0:00:56.6]} 28... Kf7 {[%clk 0:00:13.7]} 29. g3
{[%clk 0:00:53.9]} 29... c5 {[%clk 0:00:13.7]} 30. Ke3 {[%clk 0:00:40.9]} 30...
Ke6 {[%clk 0:00:13.3]} 31. Kf4 {[%clk 0:00:31.6]} 31... b4 {[%clk 0:00:11.2]}
32. axb4 {[%clk 0:00:30.2]} 32... cxb4 {[%clk 0:00:10.4]} 33. cxb4 {[%clk
0:00:25.7]} 33... axb4 {[%clk 0:00:10.5]} 34. Rc2 {[%clk 0:00:23.2]} 34... b3
{[%clk 0:00:09.6]} 35. Rxc4 {[%clk 0:00:22.1]} 35... Rxb2 {[%clk 0:00:10.5]} 36.
Rb4 {[%clk 0:00:22.3]} 36... Rf2+ {[%clk 0:00:09.5]} 37. Ke3 {[%clk 0:00:22.3]}
37... Rxh2 {[%clk 0:00:08.3]} 38. Rxb3 {[%clk 0:00:21.7]} 38... Ra2 {[%clk
0:00:07.6]} 39. Kf3 {[%clk 0:00:21.6]} 39... Ra6 {[%clk 0:00:06.6]} 40. Kf4
{[%clk 0:00:17.6]} 40... Ra7 {[%clk 0:00:05.5]} 41. Rb1 {[%clk 0:00:17.6]} 41...
Kf7 {[%clk 0:00:05.5]} 42. Rh1 {[%clk 0:00:17.7]} 42... Kg6 {[%clk 0:00:05.5]}
43. Rd1 {[%clk 0:00:18]} 43... Re7 {[%clk 0:00:05.6]} 44. Rd6 {[%clk 0:00:17.7]}
44... Re8 {[%clk 0:00:05]} 45. Ra6 {[%clk 0:00:17.6]} 45... h6 {[%clk 0:00:05]}
46. g4 {[%clk 0:00:17.5]} 46... Re7 {[%clk 0:00:05.3]} 47. Ra5 {[%clk
0:00:17.1]} 47... Re6 {[%clk 0:00:05.4]} 48. Rd5 {[%clk 0:00:16.7]} 48... Ra6
{[%clk 0:00:05.6]} 49. Rb5 {[%clk 0:00:15.7]} 49... Rc6 {[%clk 0:00:05.6]} 50.
e5 {[%clk 0:00:14.5]} 50... fxe5+ {[%clk 0:00:05.5]} 51. Rxe5 {[%clk 0:00:15.4]}
51... Rf6+ {[%clk 0:00:05.8]} 52. Kg3 {[%clk 0:00:14.8]} 52... Ra6 {[%clk
0:00:06.3]} 53. Kh4 {[%clk 0:00:15]} 53... Rf6 {[%clk 0:00:06.8]} 54. Rd5 {[%clk
0:00:14.8]} 54... Ra6 {[%clk 0:00:07.3]} 55. Rb5 {[%clk 0:00:15.2]} 55... Rf6
{[%clk 0:00:07.9]} 56. Ra5 {[%clk 0:00:15.8]} 56... Re6 {[%clk 0:00:08.1]} 57.
Rd5 {[%clk 0:00:15.4]} 57... Rf6 {[%clk 0:00:09]} 58. Re5 {[%clk 0:00:14.1]}
1/2-1/2

[Event "Late-Titled-Tuesday-Blitz-February-06-2024"]
[Site "Chess.com"]
[Date "2024.02.06"]
[Round "6"]
[White "CaspiIsrael"]
[Black "Igor_Lysyj"]
[Result "1/2-1/2"]
[WhiteElo "2690"]
[BlackElo "2877"]
[TimeControl "180+1"]
[EndTime "15:07:14 PST"]
[Termination "Game drawn by repetition"]

1. d4 {[%clk 0:03:00.9]} 1... Nf6 {[%clk 0:02:59.5]} 2. c4 {[%clk 0:03:00.5]}
2... e6 {[%clk 0:03:00.1]} 3. Nc3 {[%clk 0:03:00.6]} 3... Bb4 {[%clk 0:02:59.7]}
4. a3 {[%clk 0:03:00.8]} 4... Bxc3+ {[%clk 0:02:58.8]} 5. bxc3 {[%clk
0:03:01.7]} 5... c5 {[%clk 0:02:58.2]} 6. f3 {[%clk 0:03:01.9]} 6... Nc6 {[%clk
0:02:56.3]} 7. e4 {[%clk 0:03:00.3]} 7... d6 {[%clk 0:02:45.4]} 8. Ne2 {[%clk
0:02:53.8]} 8... b6 {[%clk 0:02:41.6]} 9. Bg5 {[%clk 0:02:50.3]} 9... h6 {[%clk
0:02:37.1]} 10. Bh4 {[%clk 0:02:49.7]} 10... O-O {[%clk 0:02:33.7]} 11. Nc1
{[%clk 0:02:41.3]} 11... Na5 {[%clk 0:02:28.7]} 12. Nb3 {[%clk 0:02:40.7]} 12...
Nxb3 {[%clk 0:02:25.6]} 13. Qxb3 {[%clk 0:02:40.6]} 13... e5 {[%clk 0:02:23.4]}
14. Rd1 {[%clk 0:02:35.9]} 14... Qe7 {[%clk 0:02:22.7]} 15. Be2 {[%clk
0:02:31.7]} 15... g5 {[%clk 0:02:22]} 16. Bf2 {[%clk 0:02:31.1]} 16... Nh5
{[%clk 0:02:20.6]} 17. h4 {[%clk 0:02:25.5]} 17... Nf4 {[%clk 0:02:18.5]} 18.
Bf1 {[%clk 0:02:25.6]} 18... Kg7 {[%clk 0:02:15.4]} 19. g3 {[%clk 0:02:24.2]}
19... Ng6 {[%clk 0:02:14.6]} 20. h5 {[%clk 0:01:56.3]} 20... Nh8 {[%clk
0:02:14.2]} 21. dxe5 {[%clk 0:01:55.5]} 21... dxe5 {[%clk 0:02:13.9]} 22. g4
{[%clk 0:01:49.8]} 22... f6 {[%clk 0:02:10.3]} 23. Be2 {[%clk 0:01:45.8]} 23...
Nf7 {[%clk 0:02:08.4]} 24. O-O {[%clk 0:01:45.7]} 24... Be6 {[%clk 0:02:06.4]}
25. a4 {[%clk 0:01:42.5]} 25... Rfd8 {[%clk 0:02:03.4]} 26. a5 {[%clk
0:01:40.7]} 26... Rxd1 {[%clk 0:01:54]} 27. Rxd1 {[%clk 0:01:40.3]} 27... Qc7
{[%clk 0:01:54.3]} 28. Qb5 {[%clk 0:01:31.6]} 28... Nd6 {[%clk 0:01:47.3]} 29.
Qa4 {[%clk 0:01:24.4]} 29... Rb8 {[%clk 0:01:44.4]} 30. Rb1 {[%clk 0:01:21.5]}
30... Bd7 {[%clk 0:01:38.6]} 31. Qa3 {[%clk 0:01:18.1]} 31... Be6 {[%clk
0:01:35.7]} 32. Qa4 {[%clk 0:01:18.1]} 32... Rb7 {[%clk 0:01:32.5]} 33. Be3
{[%clk 0:01:15.9]} 33... Bf7 {[%clk 0:01:08.4]} 34. Rd1 {[%clk 0:01:05.7]} 34...
Rb8 {[%clk 0:01:03.5]} 35. Rb1 {[%clk 0:01:01.7]} 35... Be8 {[%clk 0:00:44.3]}
36. Qa3 {[%clk 0:01:01.3]} 36... Rb7 {[%clk 0:00:42.5]} 37. Rd1 {[%clk
0:00:58.8]} 37... Qc6 {[%clk 0:00:40.2]} 38. Rd2 {[%clk 0:00:54.1]} 38... Bf7
{[%clk 0:00:39.7]} 39. axb6 {[%clk 0:00:34.9]} 39... axb6 {[%clk 0:00:39.3]} 40.
Qa8 {[%clk 0:00:34.8]} 40... Rc7 {[%clk 0:00:38.5]} 41. Qd8 {[%clk 0:00:27.1]}
41... Rd7 {[%clk 0:00:36.9]} 42. Qb8 {[%clk 0:00:24.7]} 42... Nxc4 {[%clk
0:00:29.9]} 43. Rxd7 {[%clk 0:00:18.9]} 43... Qxd7 {[%clk 0:00:28.9]} 44. Bxc4
{[%clk 0:00:09.9]} 44... Bxc4 {[%clk 0:00:28.5]} 45. Kf2 {[%clk 0:00:09.5]}
45... Qd1 {[%clk 0:00:17.6]} 46. Qc7+ {[%clk 0:00:09.3]} 46... Bf7 {[%clk
0:00:17.6]} 47. Qxb6 {[%clk 0:00:09.4]} 47... Qc2+ {[%clk 0:00:17.5]} 48. Kg3
{[%clk 0:00:09.8]} 48... c4 {[%clk 0:00:16.3]} 49. Qb4 {[%clk 0:00:06.7]} 49...
Qd3 {[%clk 0:00:14.1]} 50. Bc5 {[%clk 0:00:06.6]} 50... Qf1 {[%clk 0:00:13.7]}
51. Qb8 {[%clk 0:00:05.1]} 51... Qe1+ {[%clk 0:00:12.6]} 52. Kh3 {[%clk
0:00:05]} 52... Qh1+ {[%clk 0:00:11.3]} 53. Kg3 {[%clk 0:00:05.3]} 53... Qe1+
{[%clk 0:00:10.9]} 54. Kh3 {[%clk 0:00:05.7]} 54... Qh1+ {[%clk 0:00:09.2]} 55.
Kg3 {[%clk 0:00:06.1]} 55... Qe1+ {[%clk 0:00:08.9]} 1/2-1/2